Cogmind - Beta 9.1 @@@ ROGUE MODE // 2019.11.02 @ 00:03:49 Player: Ripper Result: Destroyed by G-34 Mercenary with Small Laser Performance ------------- Evolutions (0) 0 Regions Visited (1) 200 Robots Destroyed (8) 40 Value Destroyed (190) 190 Prototype IDs (0) 0 Alien Tech Used (0) 0 Bonus (0) 0 TOTAL SCORE: 430 Bonus ------- None Cogmind --------- Core Integrity 0/250 Matter 174/300 Energy 200/200 System Corruption 0% Temperature Cool (6) Location -10/Materials Parts ------- Power (1) Propulsion (2) Compact Wheel Utility (2) Small Battery Weapon (2) Inventory (4) Terrain Scanner Peak State ------------ Power Ion Engine Propulsion Aluminum Leg Aluminum Leg Utility Small Battery Terrain Scanner Weapon Medium Laser Assault Rifle Inventory Light Ion Engine Compact Wheel EM Pulse Gun [Rating: 7] Favorites ----------- Power Ion Engine Engine Ion Engine Propulsion Aluminum Leg Leg Aluminum Leg Wheel Compact Wheel Flight Unit Flight Unit Utility Small Battery Device Terrain Scanner Storage Small Battery Weapon Assault Rifle Energy Gun Medium Laser Ballistic Gun Assault Rifle Launcher Grenade Launcher Build | -11 -10 ------- Run | Scr Mat Slots Evolved . | . . Power . | . . Propulsion . | . . Utility . | . . Weapon . | . . Parts Attached 14 | 6 8 Power 2 | 1 1 Engine 2 | 1 1 Core . | . . Reactor . | . . Propulsion 4 | 2 2 Treads . | . . Leg 2 | 2 . Wheel 1 | . 1 Hover . | . . Flight 1 | . 1 Utility 3 | . 3 Device 2 | . 2 Storage 1 | . 1 Processor . | . . Hackware . | . . Protection . | . . Artifact . | . . Weapon 5 | 3 2 Energy Gun 3 | 2 1 Energy Cannon . | . . Ballistic Gun 1 | 1 . Ballistic Cannon . | . . Launcher 1 | . 1 Special Weapon . | . . Impact Weapon . | . . Slashing Weapon . | . . Piercing Weapon . | . . Special Melee Weapon . | . . Unidentified Prototypes . | . . Parts Lost 10 | . 10 Power 2 | . 2 Propulsion 3 | . 3 Utility 1 | . 1 Weapon 4 | . 4 Highest Loss Streak 7 | . 7 Average Slot Usage (%) 87 | . 87 Engine 13 | . 13 Leg 22 | . 22 Wheel 1 | . 1 Flight 1 | . 1 Device 11 | . 11 Storage 12 | . 12 Energy Gun 11 | . 11 Ballistic Gun 12 | . 12 Naked Turns . | . . Heaviest Build 11 | 9 11 Greatest Support 20 | 20 20 Greatest Overweight (x) 3 | 2 3 Average Overweight (x) . | . . Largest Inventory Capacity 4 | 4 4 Average Capacity 4 | 4 4 Most Carried 4 | 2 4 Average Carried 3 | 1 3 Final Capacity 4 | 4 4 Final Carried 2 | 2 1 Class Distribution -------------------- 100% | Mutant Dominant Class ---------------- Mutant | -10/Materials Resources | -11 -10 ----------- Run | Scr Mat Matter Collected 256 | 97 159 Remotely . | . . Salvage Created 197 | . 197 Parts 7 | . 7 Haulers Intercepted . | . . Recyclers Shooed . | . . Parts Field Recycled . | . . Retrieved Matter . | . . Parts Self-Destructed . | . . Prevented . | . . Kills | -11 -10 ------- Run | Scr Mat Combat Hostiles Destroyed 7 | . 7 Guns 6 | . 6 AOE 1 | . 1 Classes Destroyed 3 | . 3 Worker 1 | . 1 Swarmer 3 | . 3 Grunt 4 | . 4 Best Kill Streak 6 | . 6 Combat Bots Only 5 | . 5 Max Kills in Single Turn 1 | . 1 Gunslinging . | . . Exploded 1 | . 1 Melee . | . . Uniques/NPCs Destroyed . | . . Combat | -11 -10 -------- Run | Scr Mat Damage Taken 837 | . 837 Core 257 | . 257 Absorbed by Shields . | . . Core Remaining (%) 100 | 100 . Volleys Fired 40 | . 40 Largest 2 | . 2 Hottest 70 | . 70 Shots Fired 62 | . 62 Gun 59 | . 59 Cannon . | . . Launcher 3 | . 3 Special . | . . Kinetic 34 | . 34 Thermal 20 | . 20 Explosive 3 | . 3 Electromagnetic 5 | . 5 Robot Hit Streak 10 | . 10 Robot Miss Streak 2 | . 2 Penetration Max . | . . Secondary Targets . | . . Shots Hit Robots 50 | . 50 Core Hits 17 | . 17 Critical Hits . | . . Critical Kills . | . . Critical Parts Destroyed . | . . Melee Attacks . | . . Impact . | . . Slashing . | . . Piercing . | . . Sneak Attacks . | . . Combat Hostiles . | . . Follow-up Attacks . | . . Damage Inflicted 804 | . 804 Guns 566 | . 566 Cannons . | . . Explosions 228 | . 228 Melee . | . . Ramming 10 | . 10 Kinetic 305 | . 305 Thermal 213 | . 213 Explosive 228 | . 228 Electromagnetic 48 | . 48 Impact . | . . Slashing . | . . Piercing . | . . Highest Corruption . | . . Average Corruption . | . . Corruption Purged . | . . Overload Shots . | . . Overflow Damage 8 | . 8 Projectiles . | . . Explosions 8 | . 8 Melee . | . . Knockbacks . | . . Impact . | . . Kinetic . | . . Secondary . | . . Self-Inflicted Damage 23 | . 23 Shots 1 | . 1 Rammed 10 | . 10 Targets Rammed 10 | . 10 Kicked . | . . Crushed . | . . Highest Temperature 166 | . 166 Average Temperature 44 | . 44 Received Heat Transfer 348 | . 348 Siege Activations . | . . Robots Corrupted . | . . Combat Hostiles . | . . Parts Fried . | . . Impact Corruptions . | . . Robots Melted . | . . Combat Hostiles . | . . Parts Melted 1 | . 1 Heat Transferred 629 | . 629 Parts Sabotaged . | . . Parts Stolen . | . . Parts Stripped . | . . Power Chain Reactions . | . . Missiles Intercepted . | . . Alert | -11 -10 ------- Run | Scr Mat Peak Influence 190 | . 190 Average Influence 39 | . 44 Maximum Alert Level . | . . Low Security (%) 100 | . . Level 1 . | . . Level 2 . | . . Level 3 . | . . Level 4 . | . . Level 5 . | . . High Security . | . . Max Security . | . . Squads Dispatched 3 | . 3 Investigation 1 | . 1 Extermination . | . . Reinforcement 2 | . 2 Assault . | . . Garrison . | . . Intercept . | . . Construction Impeded . | . . Haulers Reinforced . | . . Stealth | -11 -10 --------- Run | Scr Mat Distress Signals 6 | . 6 Communications Jammed . | . . Distress Signals . | . . Times Spotted 27 | . 27 Peak Tracking Total 9 | . 9 Tactical Retreats 5 | . 5 Traps | -11 -10 ------- Run | Scr Mat Traps Triggered . | . . Indirectly . | . . Trap Hack Attempts . | . . Triggered . | . . Disarmed . | . . Reprogrammed . | . . Reused . | . . Traps Extracted . | . . Installed . | . . Triggered . | . . Machines | -11 -10 ---------- Run | Scr Mat Machines Disabled 1 | . 1 Max in Single Turn 1 | . 1 Machines Sabotaged . | . . Garrisons Compromised . | . . Overloaded Fab Kills . | . . Fab Network Shutdowns . | . . Hacking | -11 -10 --------- Run | Scr Mat Machines Accessed 1 | . 1 Terminals . | . . Fabricators . | . . Repair Stations . | . . Recycling Units 1 | . 1 Scanalyzers . | . . Garrison Access . | . . Total Hacks 6 | . 6 Successful 3 | . 3 Failed 3 | . 3 Catastrophic . | . . Database Lockouts . | . . Manual . | . . Terminals . | . . Fabricators . | . . Repair Stations . | . . Recycling Units 6 | . 6 Scanalyzers . | . . Garrison Access . | . . Terminal Hacks . | . . Fabricator Hacks . | . . Repair Station Hacks . | . . Recycling Unit Hacks 3 | . 3 Report Inventory 1 | . 1 Retrieve Matter 1 | . 1 Retrieve Components 1 | . 1 Scanalyzer . | . . Garrison Access Hacks . | . . Unauthorized Hacks . | . . Terminals . | . . Fabricators . | . . Repair Stations . | . . Recycling Units . | . . Scanalyzers . | . . Garrison Access . | . . Data Cores Recovered . | . . Used . | . . Hacking Detections 1 | . 1 Full Trace Events 1 | . 1 Feedback Events . | . . Feedback Blocked . | . . Robot Schematics Acquired . | . . Robots Built . | . . Matter . | . . Time . | . . Total Robot Build Rating . | . . Part Schematics Acquired . | . . Parts Built . | . . Matter . | . . Time . | . . Total Part Build Rating . | . . Parts Repaired . | . . Time . | . . Parts Recycled . | . . Recycled Matter . | . . Retrieved Matter . | . . Retrieved Components 2 | . 2 Parts Scanalyzed . | . . Part Schematics Acquired . | . . Parts Damaged . | . . Bothacking | -11 -10 ------------ Run | Scr Mat Used RIF Installer . | . . Robots Hacked . | . . Non-combat . | . . Combat . | . . Robot Hacks Applied . | . . Relay Couplers Released . | . . Robots Rewired . | . . Allies Hacked . | . . Hacks Repelled . | . . Allies | -11 -10 -------- Run | Scr Mat Total Allies . | . . Largest Group . | . . Highest-Rated Group . | . . Highest-Rated Ally . | . . Total Orders . | . . Ally Attacks . | . . Total Damage . | . . Kills . | . . Allies Corrupted . | . . Allies Melted . | . . Intel | -11 -10 ------- Run | Scr Mat Robot Analysis Total . | . . Derelict Logs Recovered . | . . Drone Launches . | . . Drone Recoveries . | . . Exploration | -11 -10 ------------- Run | Scr Mat Turns Passed 481 | 61 420 Spaces Moved 282 | 43 239 Core 32 | 4 28 Treads . | . . Legs 245 | 39 206 Wheels 5 | . 5 Hover . | . . Flight . | . . Fastest Speed 50 | 50 50 Average Speed 114 | 118 114 Slowest Speed 200 | 150 200 Overloaded Moves . | . . Propulsion Burnouts . | . . Robots Hopped . | . . Cave-ins Triggered . | . . Exploration Rate (%) 21 | 4 38 Regions Visited 1 Branch Regions . Pre-discovered Areas . | . . Known Exits Taken . | . . Unknown Exits Taken 1 | 1 . Scrap Searched . | . . Spaces Dug . | . . Terrain Destroyed 13 | . 13 Melee . | . . Projectile . | . . AOE 13 | . 13 Actions | -11 -10 --------- Run | Scr Mat Total 372 | 50 322 Wait 20 | . 20 Move 281 | 42 239 Hop . | . . Pick Up 6 | 2 4 Fast Attach 8 | 5 3 Attach 4 | . 4 Detach . | . . Swap 2 | 1 1 Drop 1 | . 1 Fire 40 | . 40 Melee . | . . Ram 9 | . 9 Kick 1 | . 1 Crush . | . . Escape Stasis . | . . Rewire . | . . Trap . | . . Miscellaneous . | . . Route ------- -11/Scrapyard -10/Materials History --------- Turn | Location | Event 5 | -11/Scrapyard | Discovered new exit (range 16) 62 | -11/Scrapyard | Entered Materials 319 | -10/Materials | Build established: Mutant 420 | -10/Materials | Core integrity fell below 50% 434 | -10/Materials | Core integrity fell below 20% 465 | -10/Materials | Lost 7 parts (1p2n1u3w) 482 | -10/Materials | Destroyed by G-34 Mercenary with Small Laser Last Messages --------------- Connecting with Recycling Unit... >>Retrieve(Components) Retrieving 2 components... EM Pulse Gun Flight Unit ALERT: Suspicious activity at Recycling Unit M001. Dispatching Investigation squad. Acquired EM Pulse Gun. Acquired Flight Unit. Destroyed Ion Engine. G-34 Mercenary destroyed. EM Pulse Gun destroyed. Slammed into G-34 Mercenary. Flight Unit destroyed. Slammed into G-34 Mercenary. Lgt. Ion Engine destroyed. Slammed into G-34 Mercenary. Destabilizing: Short circuit. Com. Wheel permanently disabled. Slammed into G-34 Mercenary. Map ----- +----------------------------------------------------+ | | | | | | | | | | | | | | | | | | | | | | | | | | | | | | | | | | | ???????#???????????#??????????? | | ????????????????#?????????????? | | ?????????????###########??????? | | ????########?# #??????? | | ????# #?# #??????? | | ????# """ #?# """ #??????? | | ????# "Y" ### """"" #??????? | | ????# #?# """"" #??????? | | ??#?# @ #?# """"" #??????# | | ????#g % #?# """ #????#?? | | ????####g###?# #?#????? | | ??#?# #???#####+#########??? | | ????# #??????# #??? | | ????# ######## #??? | | ??#?# #??? | | ????# ############## # #??? | | ????# #??#????# #??? | | ????# #??????## "" #### | | #??## #???????# """ | | ????# #???????# "" !% | | ????# #??? ???# "" * [ | | ????# #????? ?# """ * | | ????# #?? ??? # "" [ | | ????# #?????? # ["" [[[ | | ????# #????? # # [[[ | | ??#?# #??#+##+##### ## # [[ | | ????# #??# ? ?? | | ?#??# #??# ?? ?? | | ????# #?## ??? ? | | ??###+#### ############+##### | | ??# # # #??? ????? | | ??# / # # """ #???"????? | | ??# + # """ #????????? | +----------------------------------------------------+ Best States ------------- Heat Dissipation 25 Energy Generation 10 Energy Capacity 350 Matter Stores 205 Matter Capacity 300 Sight Range 16 Terrain Scan Range 14 Terrain Scan Density 10 ECM Strength 1 Evasion (%) 50 Item Schematics ----------------- None Robot Schematics ------------------ None Fabricated ------------ Nothing Alien Tech Used ----------------- None Achievements -------------- None Challenges ------------ None Game ------ Seed MeleeFactoryAutocannon Manual? 0 Play Time 00:09:24 Cumulative 15.2 hours Start 2019.11.01 @ 23:53:31 End 2019.11.02 @ 00:03:49 Sessions 1 Manual Loads 0 Difficulty Rogue Special Mode None Game No. 46 Rogue 46 Adventurer 0 Explorer 0 Win Type - Total 0 Types 0/0/0/0/0/0/0 Lore% 2 Gallery% 23 Achievement% 14 Wizard Run 0 Options --------- ASCII 0 Keyboard 0 Movement Numpad Keybinds 0 Fullscreen 1 Font 24/Terminus Map View 76x50 Tactical HUD 0 Map Filters NONE Filters NONE Steam 1 RUN: 123c90d5-06e8-4d0d-91e1-e42085cd422e